[Event "11th Tamil Nadu Circuit-IM 2024"]
[Site "Chennai"]
[Date "2024.01.13"]
[Round "8.1"]
[White "Wagh Suyog"]
[Black "Priyanka, K."]
[Result "1-0"]
[ECO "A64"]
[WhiteElo "2266"]
[BlackElo "2068"]
[Annotator "RC"]
[PlyCount "131"]
[EventDate "2024.01.09"]
[EventType "tourn"]
[EventCountry "IND"]
[SourceTitle "playchess.com"]
[Source "ChessBase"]
[SourceQuality "1"]
[TimeControl "5400+30"]

1. Nf3 {[%emt 0:01:19]} Nf6 {[%emt 0:00:24]} 2. c4 {[%emt 0:00:15]} g6 {[%emt 0:00:05]} 3. Nc3 {[%emt 0:00:37]} Bg7 {[%emt 0:00:07]} 4. g3 {[%emt 0:00:20]} d6 {[%emt 0:00:07]} 5. d4 {[%emt 0:00:10]} O-O {[%emt 0:00:08]} 6. Bg2 {[%emt 0:00:03]} c5 {[%emt 0:00:14]} 7. d5 {[%emt 0:00:07]} e6 {[%emt 0:00:36]} 8. O-O {[%emt 0:00:17]} Re8 {[%emt 0:00:33]} 9. Nd2 {[%emt 0:03:19]} exd5 {[%emt 0:00:25]} 10. cxd5 {[%emt 0:00:07]} a6 {[%emt 0:01:12]} 11. a4 {[%emt 0:00:50]} Nbd7 {[%emt 0:00:24]} 12. Ra2 {[%emt 0:12:53]} Rb8 {[%emt 0:10:17]} 13. a5 {[%emt 0:02:40]} b5 {[%emt 0:09:14]} 14. axb6 {[%emt 0:00:06]} Nxb6 {[%emt 0:00:59]} 15. Qc2 {[%emt 0:11:48]} a5 {[%emt 0:09:46]} 16. Rd1 {[%emt 0:11:57]} Ba6 {[%emt 0:06:22]} 17. e4 {[%emt 0:01:29]} Nc4 {[%emt 0:05:38]} 18. Bf1 {[%emt 0:12:07]} Nxd2 {[%emt 0:10:11]} 19. Bxd2 {[%emt 0:00:06]} Bxf1 {[%emt 0:00:16]} 20. Rxf1 {[%emt 0:00:04]} Qb6 {[%emt 0:02:07]} 21. Rfa1 {[%emt 0:04:30]} h6 {[%emt 0:04:52]} 22. Bc1 {[%emt 0:01:44]} Qb3 {[%emt 0:09:38]} 23. Qxb3 {[%emt 0:00:52]} Rxb3 {[%emt 0:00:05]} 24. Rxa5 {[%emt 0:11:51]} Ng4 {[%emt 0:14:12]} 25. Kg2 {[%emt 0:12:48]} Bd4 {[%emt 0:06:40]} 26. Rb5 {[%emt 0:07:31]} Rxb5 {[%emt 0:04:05]} 27. Nxb5 {[%emt 0:00:01]} Rxe4 {[%emt 0:00:44]} 28. h3 {[%emt 0:02:22]} Nf6 {[%emt 0:01:10]} 29. Kf3 {[%emt 0:01:51]} Re5 {[%emt 0:00:53]} 30. Bf4 {[%emt 0:00:42]} Rxd5 {[%emt 0:03:17]} 31. Nc7 {[%emt 0:00:37]} Rf5 {[%emt 0:00:37]} 32. g4 {[%emt 0:00:22]} Rxf4+ {[%emt 0:00:20]} 33. Kxf4 {[%emt 0:00:02]} Bxb2 {[%emt 0:00:14]} 34. Ra6 {[%emt 0:01:07]} Be5+ {[%emt 0:00:21]} 35. Ke3 {[%emt 0:00:08]} d5 {[%emt 0:00:47]} 36. Nb5 {[%emt 0:00:44]} Kg7 {[%emt 0:00:55]} 37. f4 {[%emt 0:00:11]} Bb2 {[%emt 0:00:28]} 38. Ra2 {[%emt 0:00:36]} Bc1+ {[%emt 0:00:08]} 39. Kf3 {[%emt 0:00:00]} g5 {[%emt 0:00:18]} 40. fxg5 {[%emt 0:00:34]} Bxg5 {[%emt 0:00:18]} 41. Ra7 {[%emt 0:00:23]} Ne4 {[%emt 0:00:25]} 42. Nc7 {[%emt 0:00:23]} Nc3 {[%emt 0:01:11]} 43. Ne6+ {[%emt 0:00:07]} Kg6 {[%emt 0:00:26]} 44. Nxc5 {[%emt 0:00:03]} d4 {[%emt 0:00:40]} 45. Ra6+ {[%emt 0:00:16]} Kg7 {[%emt 0:00:20]} 46. Nb3 {[%emt 0:01:37]} Bf6 {[%emt 0:00:20]} 47. Rb6 {[%emt 0:00:40]} Be5 {[%emt 0:00:48]} 48. Ra6 {[%emt 0:01:06]} f6 {[%emt 0:00:28]} 49. Ra7+ {[%emt 0:00:26]} Kg6 {[%emt 0:00:05]} 50. Rd7 {[%emt 0:00:04]} Nb5 {[%emt 0:00:39]} 51. Nd2 {[%emt 0:00:39]} Nd6 {[%emt 0:00:32]} 52. Nb3 {[%emt 0:00:28]} Nb5 {[%emt 0:00:16]} 53. Nc5 {[%emt 0:00:08]} f5 {[%emt 0:00:54]} 54. Nd3 {[%emt 0:00:51]} fxg4+ {[%emt 0:00:34]} 55. Kxg4 {[%emt 0:00:37]} h5+ {[%emt 0:00:27]} 56. Kf3 {[%emt 0:00:05]} Bh8 {[%emt 0:00:45]} 57. Nf4+ {[%emt 0:00:36]} Kh6 {[%emt 0:00:26]} 58. Rd5 {[%emt 0:00:12]} Nc3 {[%emt 0:00:09]} 59. Rxh5+ {[%emt 0:00:47]} Kg7 {[%emt 0:00:02]} 60. Rc5 {[%emt 0:00:36]} Kf7 {[%emt 0:00:38]} 61. Rc7+ {[%emt 0:00:09]} Kg8 {[%emt 0:00:23]} 62. Rd7 {[%emt 0:01:02]} Bf6 {[%emt 0:00:49]} 63. Ne6 {[%emt 0:00:59]} Nb5 {[%emt 0:00:11]} 64. Kg4 {[%emt 0:00:14]} d3 {[%emt 0:01:21]} 65. Kf5 {[%emt 0:00:12]} Bh4 {[%emt 0:00:31]} 66. Kg6 {[%emt 0:00:14]} 1-0

[Event "11th Tamil Nadu Circuit-IM 2024"]
[Site "Chennai"]
[Date "2024.01.13"]
[Round "8.2"]
[White "Harsh Suresh"]
[Black "Khusenkhojaev, Muhammad"]
[Result "0-1"]
[ECO "C84"]
[WhiteElo "2361"]
[BlackElo "2379"]
[Annotator "RC"]
[PlyCount "98"]
[EventDate "2024.01.09"]
[EventType "tourn"]
[EventCountry "IND"]
[SourceTitle "playchess.com"]
[Source "ChessBase"]
[SourceQuality "1"]
[TimeControl "5400+30"]

1. e4 {[%emt 0:00:13]} e5 {[%emt 0:01:58]} 2. Nf3 {[%emt 0:00:09]} Nc6 {[%emt 0:00:05]} 3. Bb5 {[%emt 0:00:06]} a6 {[%emt 0:00:06]} 4. Ba4 {[%emt 0:00:06]} Nf6 {[%emt 0:00:06]} 5. O-O {[%emt 0:00:09]} Be7 {[%emt 0:00:50]} 6. d3 {[%emt 0:00:09]} b5 {[%emt 0:00:38]} 7. Bb3 {[%emt 0:00:05]} d6 {[%emt 0:00:08]} 8. c3 {[%emt 0:00:10]} O-O {[%emt 0:00:15]} 9. a4 {[%emt 0:00:11]} Bb7 {[%emt 0:01:47]} 10. Bg5 {[%emt 0:00:24]} Na5 {[%emt 0:01:17]} 11. Ba2 {[%emt 0:01:57]} c5 {[%emt 0:00:52]} 12. Nbd2 {[%emt 0:03:56]} Ne8 {[%emt 0:14:49]} 13. Bxe7 {[%emt 0:18:02]} Qxe7 {[%emt 0:00:08]} 14. Re1 {[%emt 0:01:25]} Nc7 {[%emt 0:01:08]} 15. Nf1 {[%emt 0:00:13]} Qd7 {[%emt 0:01:19]} 16. axb5 {[%emt 0:01:15]} axb5 {[%emt 0:00:07]} 17. Ne3 {[%emt 0:00:19]} Nc6 {[%emt 0:01:37]} 18. Qd2 {[%emt 0:21:38]} Ne7 {[%emt 0:10:39]} 19. Bb3 {[%emt 0:01:08]} Ne6 {[%emt 0:01:37]} 20. Nh4 {[%emt 0:05:54]} d5 {[%emt 0:02:42]} 21. exd5 {[%emt 0:07:48]} Nxd5 {[%emt 0:00:24]} 22. Bxd5 {[%emt 0:04:07]} Bxd5 {[%emt 0:00:17]} 23. Nxd5 {[%emt 0:00:10]} Qxd5 {[%emt 0:00:06]} 24. Nf5 {[%emt 0:13:42]} Kh8 {[%emt 0:01:46]} 25. Ne3 {[%emt 0:03:36]} Qd7 {[%emt 0:01:56]} 26. c4 {[%emt 0:01:36]} Nf4 {[%emt 0:08:53]} 27. cxb5 {[%emt 0:01:22]} Qxb5 {[%emt 0:01:03]} 28. Nc4 {[%emt 0:01:43]} Qb7 {[%emt 0:03:26]} 29. f3 {[%emt 0:00:48]} f6 {[%emt 0:00:17]} 30. Qe3 {[%emt 0:00:44]} Qb3 {[%emt 0:03:20]} 31. Red1 {[%emt 0:06:40]} Rxa1 {[%emt 0:03:45]} 32. Rxa1 {[%emt 0:00:01]} Nxd3 {[%emt 0:00:18]} 33. Qe4 {[%emt 0:00:38]} h6 {[%emt 0:12:05]} 34. h4 {[%emt 0:02:02]} f5 {[%emt 0:02:30]} 35. Qd5 {[%emt 0:00:08]} Qc2 {[%emt 0:00:11]} 36. Kh2 {[%emt 0:04:25]} Nf4 {[%emt 0:01:36]} 37. Ne3 {[%emt 0:00:01]} Qf2 {[%emt 0:06:03]} 38. Qxc5 {[%emt 0:01:03]} Qxh4+ {[%emt 0:00:48]} 39. Kg1 {[%emt 0:00:01]} Ne2+ {[%emt 0:00:05]} 40. Kf1 {[%emt 0:00:01]} Ng3+ {[%emt 0:00:19]} 41. Kg1 {[%emt 0:00:01]} Rd8 {[%emt 0:00:52]} 42. Rd1 {[%emt 0:00:43]} f4 {[%emt 0:01:10]} 43. Rxd8+ {[%emt 0:00:12]} Qxd8 {[%emt 0:00:12]} 44. Nf1 {[%emt 0:01:33]} Qd1 {[%emt 0:00:43]} 45. Qc4 {[%emt 0:00:16]} Qe1 {[%emt 0:01:30]} 46. Qc8+ {[%emt 0:01:58]} Kh7 {[%emt 0:00:06]} 47. Qc2+ {[%emt 0:00:08]} e4 {[%emt 0:00:05]} 48. Qc4 {[%emt 0:00:38]} Ne2+ {[%emt 0:00:19]} 49. Kh2 {[%emt 0:00:07]} Qh4# {[%emt 0:00:10]} 0-1

[Event "11th Tamil Nadu Circuit-IM 2024"]
[Site "Chennai"]
[Date "2024.01.13"]
[Round "8.3"]
[White "Manik, Mikulas"]
[Black "Podolchenko, Evgeniy"]
[Result "1/2-1/2"]
[ECO "B09"]
[WhiteElo "2342"]
[BlackElo "2357"]
[Annotator "TA"]
[PlyCount "32"]
[EventDate "2024.01.09"]
[EventType "tourn"]
[EventCountry "IND"]
[SourceTitle "playchess.com"]
[Source "ChessBase"]
[SourceQuality "1"]
[TimeControl "5400+30"]

{[%evp 27,32,0,0,0,0,0,0]} 1. e4 {[%emt 0:03:33]} g6 {[%emt 0:00:05]} 2. d4 {[%emt 0:00:08]} Bg7 {[%emt 0:00:05]} 3. Nc3 {[%emt 0:00:07]} d6 {[%emt 0:00:06]} 4. f4 {[%emt 0:01:05]} Nf6 {[%emt 0:00:06]} 5. Nf3 {[%emt 0:00:16][%cal Bg1f3,Bf3g5,Bg5e6][%mdl 32]} c5 {[%emt 0:00:04]} 6. Bb5+ {[%emt 0:01:46]} Bd7 {[%emt 0:00:07]} 7. e5 {[%emt 0:01:10]} Ng4 {[%emt 0:00:30]} 8. e6 {[%emt 0:01:08]} fxe6 {[%emt 0:00:03]} 9. Ng5 {[%emt 0:00:24]} Bxb5 {[%emt 0:00:15]} 10. Nxe6 {[%emt 0:00:11]} Bxd4 {[%emt 0:00:07]} 11. Nxd8 {[%emt 0:00:11]} Bf2+ {[%emt 0:00:05]} 12. Kd2 {[%emt 0:00:05]} Be3+ {[%emt 0:00:04]} 13. Ke1 {[%emt 0:00:03]} Bf2+ {[%emt 0:00:07]} 14. Kd2 {[%emt 0:00:03]} Be3+ {[%emt 0:00:06] The position is equal.} 15. Ke1 {[%emt 0:00:03]} Bf2+ {[%emt 0:00:05] This pair of bishops is nice.} 16. Kd2 {[%emt 0:00:09]} Be3+ {[%emt 0:00:41] A rather calm draw.   Best:        	---       	Black=2} 1/2-1/2

[Event "11th Tamil Nadu Circuit-IM 2024"]
[Site "Chennai"]
[Date "2024.01.13"]
[Round "8.4"]
[White "Hemanth Raam"]
[Black "Ziatdinov, Raset"]
[Result "1-0"]
[ECO "C45"]
[WhiteElo "2161"]
[BlackElo "2100"]
[Annotator "TA"]
[PlyCount "85"]
[EventDate "2024.01.09"]
[EventType "tourn"]
[EventCountry "IND"]
[SourceTitle "playchess.com"]
[Source "ChessBase"]
[SourceQuality "1"]
[TimeControl "5400+30"]

{[%evp 14,85,0,-16,5,-16,3,-32,0,-16,-11,-2,10,27,29,4,31,10,39,21,34,28,77,87,75,76,89,0,27,29,45,15,66,54,77,41,43,43,50,27,22,36,70,70,112,66,53,0,64,68,85,17,26,29,121,28,170,69,143,68,60,23,45,8,8,0,59,57,147,0,0,0,1761,1818]} 1. e4 {[%emt 0:00:27]} e5 {[%emt 0:00:03]} 2. Nf3 {[%emt 0:00:04]} Nc6 {[%emt 0:00:04]} 3. d4 {[%emt 0:00:09]} exd4 {[%emt 0:00:07]} 4. Nxd4 {[%emt 0:00:04]} Nf6 {[%emt 0:00:03]} 5. Nxc6 {[%emt 0:00:22]} bxc6 {[%emt 0:00:06]} 6. e5 {[%emt 0:00:07]} Qe7 {[%emt 0:00:05]} 7. Qe2 {[%emt 0:00:03]} Nd5 {[%emt 0:00:06]} 8. h4 {[%emt 0:00:04]} a5 {[%emt 0:03:21]} 9. c4 {[%emt 0:00:06]} Ba6 {[%emt 0:01:32]} 10. h5 {[%emt 0:00:26]} Nb6 {[%emt 0:01:16] Black is slightly better.} 11. Nd2 {[%emt 0:00:14]} O-O-O {[%emt 0:00:45]} 12. b3 {[%emt 0:00:40]} f6 {[%emt 0:01:04]} 13. Bb2 {[%emt 0:00:52]} fxe5 {[%emt 0:00:20]} 14. O-O-O {[%emt 0:00:07]} d6 {[%emt 0:02:38]} 15. g3 {[%emt 0:00:35]} Qe8 {[%emt 0:04:24]} 16. Bg2 {[%emt 0:01:21]} Kb8 {[%emt 0:02:05]} 17. f4 {[%emt 0:01:21]} exf4 {[%emt 0:04:05]} (17... Rg8 $11 {was preferrable.}) 18. Qxe8 $16 {[%emt 0:00:26]} Rxe8 {[%emt 0:00:04]} 19. Bxc6 {[%emt 0:00:04]} (19. gxf4 d5 $11) 19... Re7 {[%emt 0:01:40]} 20. g4 {[%emt 0:08:47]} (20. gxf4 $16 {Threatens to win with h6.} Bb7 21. Bxb7 Kxb7 22. Rdg1) 20... Bc8 {[%emt 0:03:35]} 21. g5 {[%emt 0:00:37][%mdl 1024] White has compensation.} Rg8 {[%emt 0:01:30]} 22. Rdf1 {[%emt 0:03:32]} Bd7 {[%emt 0:07:43]} (22... Re2 $11) 23. Be4 $14 {[%emt 0:07:04]} g6 {[%emt 0:00:15]} 24. Bf6 {[%emt 0:12:33]} Rf7 {[%emt 0:01:17]} 25. Rxf4 {[%emt 0:03:26]} Be7 {[%emt 0:00:32]} 26. hxg6 {[%emt 0:00:26]} hxg6 {[%emt 0:00:19]} 27. Rhf1 {[%emt 0:05:46]} Be8 {[%emt 0:08:32]} 28. Nf3 {[%emt 0:04:23]} c6 {[%emt 0:10:03]} 29. Nh4 {[%emt 0:13:25]} (29. Ne5 $16 dxe5 (29... Rxf6 $2 30. gxf6 dxe5 31. f7 $18) 30. Bxe5+ Kc8 31. Rxf7 Bxf7 32. Rxf7 Bxg5+ 33. Bf4 Bxf4+ 34. Rxf4) 29... Rh7 {[%emt 0:00:49]} 30. Nf3 {[%emt 0:04:32]} (30. Kb2 $14) 30... Kc7 {[%emt 0:02:25]} (30... Rf7 $1 $11) 31. Nd4 {[%emt 0:00:51]} Bd7 {[%emt 0:05:43]} 32. Rh1 {[%emt 0:06:30] White has more active pieces.} (32. Bc2 $16) 32... Rxh1+ $11 {[%emt 0:07:03]} 33. Bxh1 {[%emt 0:00:03]} Bxf6 {[%emt 0:00:59]} (33... Rf8 $11 {remains equal.}) 34. Rxf6 {[%emt 0:00:03]} (34. gxf6 $16 {[%cal Oh1c6] Strongly threatening Bxc6!} Rf8 (34... Rh8 $2 35. f7 $18) 35. Bxc6 (35. f7 Kd8 $16)) 34... c5 {[%emt 0:06:37] [#]} (34... Rh8 $1 $11 {and Black has nothing to worry.} 35. Bf3 Rh2 36. Rxg6 Rxa2) 35. Ne2 {[%emt 0:00:05]} (35. Nb5+ $1 $18 Bxb5 36. cxb5) 35... Bf5 {[%emt 0:04:39]} (35... a4 $14) 36. Nf4 {[%emt 0:00:04]} (36. Nc3 $16) 36... a4 $14 {[%emt 0:02:43]} 37. Bd5 {[%emt 0:00:49]} Rh8 {[%emt 0:06:49]} 38. Rf7+ {[%emt 0:02:05]} Kc8 {[%emt 0:01:00]} 39. bxa4 {[%emt 0:01:08]} Nxd5 {[%emt 0:01:16]} ({Black should try} 39... Rh4 $1 $11 40. a5 Nxd5 41. Nxd5 Rxc4+ 42. Kb2 Rc2+ 43. Kb3 Rg2) 40. Nxd5 {[%emt 0:00:02]} Rh4 {[%emt 0:02:57] [#]} (40... Rh1+ $1 $14 41. Kb2 Rh2+ 42. Kb3 Rh3+ 43. Nc3 Be4) 41. a5 {[%emt 0:08:48]} (41. Ne7+ $1 $16 Kb8 42. Nxf5 Rxc4+ 43. Kb2 Rxa4 44. Nxd6) 41... Rxc4+ $11 {[%emt 0:01:35]} 42. Kb2 {[%emt 0:00:02]} Rd4 $2 {[%emt 0:01:36][%mdl 8192]} (42... Rc2+ $11 43. Kb3 Rg2 44. Nb6+ Kb8) 43. Ne7+ {[%emt 0:00:52] Weighted Error Value: White=0.33/Black=0.32.  Loses game:     	---       	Black=1      Mistake:       	White=8     	Black=8      Inaccurate:     	White=5     	Black=6      OK:         	White=10    	Black=10     Best:        	White=3     	Black=2} 1-0

[Event "11th Tamil Nadu Circuit-IM 2024"]
[Site "Chennai"]
[Date "2024.01.13"]
[Round "8.5"]
[White "Daakshin Arun"]
[Black "Lokesh, N.."]
[Result "1/2-1/2"]
[ECO "D35"]
[WhiteElo "2309"]
[BlackElo "2140"]
[Annotator "TA"]
[PlyCount "75"]
[EventDate "2024.01.09"]
[EventType "tourn"]
[EventCountry "IND"]
[SourceTitle "playchess.com"]
[Source "ChessBase"]
[SourceQuality "1"]
[TimeControl "5400+30"]

{[%evp 9,75,13,19,10,22,12,18,15,18,22,21,35,22,0,0,11,10,8,0,0,58,0,-3,-34,-34,-52,-37,-21,-42,-33,-41,-89,-77,-68,-82,-102,-91,-89,-78,-85,-56,-114,-60,-45,-33,-58,-66,-54,0,0,0,0,0,0,0,0,0,0,0,0,0,0,0,0,0,0,0,0]} 1. d4 {[%emt 0:00:19]} d5 {[%emt 0:00:05]} 2. c4 {[%emt 0:00:20]} e6 {[%emt 0:00:07]} 3. Nc3 {[%emt 0:00:15]} Be7 {[%emt 0:00:07]} 4. Bf4 {[%emt 0:00:14]} Nf6 {[%emt 0:00:20]} 5. e3 {[%emt 0:00:19]} O-O {[%emt 0:01:16]} 6. a3 {[%emt 0:00:34]} dxc4 {[%emt 0:04:16]} 7. Bxc4 {[%emt 0:01:03]} a6 {[%emt 0:00:09]} 8. Nf3 {[%emt 0:02:06]} Nbd7 {[%emt 0:11:20]} 9. O-O {[%emt 0:01:59]} b5 {[%emt 0:03:21]} 10. Be2 {[%emt 0:04:26]} c5 {[%emt 0:01:29]} 11. dxc5 {[%emt 0:03:00]} Nxc5 {[%emt 0:00:12]} 12. b4 {[%emt 0:05:42]} Nce4 {[%emt 0:04:35]} 13. Nxe4 {[%emt 0:01:27]} (13. Qxd8 {simplifies} Bxd8 14. Be5 Nxc3 15. Bxc3 Bb7 16. Rfc1) 13... Nxe4 {[%emt 0:00:08]} 14. Rc1 {[%emt 0:03:21]} Bf6 {[%emt 0:10:13]} (14... Bb7 $11) 15. Bd3 {[%emt 0:13:34]} (15. Ne5 $14) 15... Bb7 {[%emt 0:16:52]} 16. Rc7 {[%emt 0:06:34]} (16. Be5 {simplifies} h6 17. Bxe4 Bxe4 18. Qxd8 Bxd8 19. Rfd1) 16... Qd5 {[%emt 0:00:21]} 17. Qc2 {[%emt 0:04:12][%cal Oc7b7] [#] And now Rxb7! would win.} Rac8 {[%emt 0:08:10]} 18. Bxe4 $1 {[%emt 0:11:07]} Qxe4 {[%emt 0:00:31]} 19. Qxe4 {[%emt 0:00:41]} Bxe4 {[%emt 0:00:12] A strong pair of Bishops.} 20. Rfc1 {[%emt 0:00:41]} (20. Ra7 $15 {deserves consideration.}) 20... Rxc7 $17 {[%emt 0:01:03]} 21. Rxc7 {[%emt 0:00:21]} Rd8 {[%emt 0:01:01] [#] ( -> ...Rd1+)} 22. h3 {[%emt 0:01:33]} Bxf3 {[%emt 0:01:21]} 23. gxf3 {[%emt 0:00:37][%mdl 4096] Endgame. KRB-KRB} g5 {[%emt 0:00:04]} 24. Bg3 {[%emt 0:01:34]} Rd3 {[%emt 0:00:23][%cal Od3c3]} 25. f4 {[%emt 0:05:31]} ({Better is} 25. a4 $1 $15) 25... h6 {[%emt 0:00:54]} (25... gxf4 $17 26. Bxf4 Kg7 (26... Rxa3 27. Bh6 $11)) 26. f5 $15 {[%emt 0:02:19]} Rxa3 {[%emt 0:10:10]} 27. fxe6 {[%emt 0:01:15]} fxe6 {[%emt 0:00:02]} 28. Bd6 {[%emt 0:00:48]} a5 {[%emt 0:11:35]} (28... Bc3 $15) 29. bxa5 $11 {[%emt 0:00:20] The position is equal.} Rxa5 {[%emt 0:00:04]} 30. Rb7 {[%emt 0:00:18]} Ra1+ {[%emt 0:00:40]} 31. Kg2 {[%emt 0:00:12]} Rb1 {[%emt 0:00:06]} 32. Kg3 {[%emt 0:09:05]} h5 {[%emt 0:00:28]} 33. f4 {[%emt 0:00:05]} Rg1+ {[%emt 0:08:01]} 34. Kf2 {[%emt 0:01:12]} Rd1 {[%emt 0:01:24]} 35. fxg5 {[%emt 0:01:31]} Bxg5 {[%emt 0:00:02]} 36. Rxb5 {[%emt 0:00:20]} Bxe3+ {[%emt 0:04:53]} 37. Kxe3 {[%emt 0:00:05]} Rxd6 {[%emt 0:00:05]} 38. Rxh5 {[%emt 0:00:07] Weighted Error Value: White=0.11 (very precise) /Black=0.11 (very precise) .  Mistake:       	White=3     	Black=3      Inaccurate:     	White=1     	Black=1      OK:         	White=14    	Black=6      Best:        	---       	Black=2      Strong:       	White=1     	---} 1/2-1/2

[Event "11th Tamil Nadu Circuit-IM 2024"]
[Site "Chennai"]
[Date "2024.01.14"]
[Round "9.1"]
[White "Lokesh, N.."]
[Black "Wagh Suyog"]
[Result "1-0"]
[ECO "B92"]
[WhiteElo "2140"]
[BlackElo "2266"]
[Annotator "RC"]
[PlyCount "113"]
[EventDate "2024.01.09"]
[EventType "tourn"]
[EventCountry "IND"]
[SourceTitle "playchess.com"]
[Source "ChessBase"]
[SourceQuality "1"]
[TimeControl "5400+30"]

1. e4 {[%emt 0:00:03]} c5 {[%emt 0:00:07]} 2. Nf3 {[%emt 0:00:06]} d6 {[%emt 0:00:05]} 3. d4 {[%emt 0:00:05]} cxd4 {[%emt 0:00:11]} 4. Nxd4 {[%emt 0:00:06]} Nf6 {[%emt 0:00:10]} 5. Nc3 {[%emt 0:00:04]} a6 {[%emt 0:00:03]} 6. Be2 {[%emt 0:00:08]} e5 {[%emt 0:00:04]} 7. Nf3 {[%emt 0:00:04]} Be7 {[%emt 0:00:07]} 8. Bg5 {[%emt 0:00:06]} Nbd7 {[%emt 0:00:05]} 9. Nd2 {[%emt 0:02:00]} b5 {[%emt 0:09:11]} 10. a4 {[%emt 0:01:18]} b4 {[%emt 0:02:02]} 11. Na2 {[%emt 0:00:05]} Rb8 {[%emt 0:07:48]} 12. c3 {[%emt 0:12:08]} bxc3 {[%emt 0:04:11]} 13. Nxc3 {[%emt 0:00:23]} h6 {[%emt 0:10:00]} 14. Be3 {[%emt 0:04:26]} O-O {[%emt 0:07:44]} 15. O-O {[%emt 0:05:11]} Nc5 {[%emt 0:04:09]} 16. Qc2 {[%emt 0:10:44]} Ne6 {[%emt 0:06:04]} 17. Bc4 {[%emt 0:16:17]} Ng4 {[%emt 0:05:18]} 18. Nd5 {[%emt 0:00:20]} a5 {[%emt 0:03:07]} 19. Bb5 {[%emt 0:05:21]} Nxe3 {[%emt 0:00:45]} 20. fxe3 {[%emt 0:00:02]} Bb7 {[%emt 0:04:01]} 21. Nc4 {[%emt 0:01:38]} Bxd5 {[%emt 0:05:51]} 22. exd5 {[%emt 0:00:07]} Nc5 {[%emt 0:00:05]} 23. Qc3 {[%emt 0:00:15]} Ra8 {[%emt 0:00:15]} 24. Bc6 {[%emt 0:05:26]} Ra7 {[%emt 0:00:04]} 25. b4 {[%emt 0:03:32]} axb4 {[%emt 0:02:08]} 26. Qxb4 {[%emt 0:00:03]} Bg5 {[%emt 0:00:33]} 27. Kh1 {[%emt 0:06:00]} Qe7 {[%emt 0:04:30]} 28. a5 {[%emt 0:05:42]} h5 {[%emt 0:00:10]} 29. Qb6 {[%emt 0:06:19]} Ra6 {[%emt 0:00:50]} 30. Qb1 {[%emt 0:00:06]} h4 {[%emt 0:01:12]} 31. Ra2 {[%emt 0:00:35]} e4 {[%emt 0:00:52]} 32. Rb2 {[%emt 0:04:59]} Qd8 {[%emt 0:00:08]} 33. Rb6 {[%emt 0:02:00]} Ra7 {[%emt 0:00:41]} 34. Bb7 {[%emt 0:08:42]} h3 {[%emt 0:01:34]} 35. g3 {[%emt 0:02:35]} Qd7 {[%emt 0:06:22]} 36. a6 {[%emt 0:00:02]} Qa4 {[%emt 0:00:06]} 37. Nxd6 {[%emt 0:00:59]} Bxe3 {[%emt 0:01:42]} 38. Bc6 {[%emt 0:00:01]} Qd4 {[%emt 0:02:00]} 39. Nf5 {[%emt 0:01:12]} Qd2 {[%emt 0:00:37]} 40. Rb2 {[%emt 0:00:09]} Qc3 {[%emt 0:00:05]} 41. Rc2 {[%emt 0:00:57]} Qa3 {[%emt 0:00:01]} 42. Ra2 {[%emt 0:00:28]} Qc3 {[%emt 0:00:10]} 43. Rc2 {[%emt 0:00:34]} Qd3 {[%emt 0:00:33]} 44. Rd1 {[%emt 0:00:34]} Bd2 {[%emt 0:00:16]} 45. Rcxd2 {[%emt 0:00:16]} Qf3+ {[%emt 0:00:04]} 46. Kg1 {[%emt 0:00:09]} Qxf5 {[%emt 0:02:19]} 47. Qb6 {[%emt 0:00:57]} e3 {[%emt 0:00:03]} 48. Qxa7 {[%emt 0:00:06]} exd2 {[%emt 0:00:58]} 49. Qxc5 {[%emt 0:00:02]} Qf3 {[%emt 0:00:01]} 50. Rxd2 {[%emt 0:00:20]} Rb8 {[%emt 0:00:00]} 51. Bb7 {[%emt 0:01:07]} Qe4 {[%emt 0:00:52]} 52. Qf2 {[%emt 0:00:41]} Re8 {[%emt 0:00:12]} 53. Rd1 {[%emt 0:00:13]} Qa4 {[%emt 0:00:06]} 54. Rf1 {[%emt 0:00:07]} Re7 {[%emt 0:00:37]} 55. d6 {[%emt 0:00:34]} Rd7 {[%emt 0:00:05]} 56. Qb6 {[%emt 0:01:00]} Qc2 {[%emt 0:01:53]} 57. a7 {[%emt 0:00:11]} 1-0

[Event "11th Tamil Nadu Circuit-IM 2024"]
[Site "Chennai"]
[Date "2024.01.14"]
[Round "9.2"]
[White "Ziatdinov, Raset"]
[Black "Daakshin Arun"]
[Result "0-1"]
[ECO "E98"]
[WhiteElo "2100"]
[BlackElo "2309"]
[Annotator "RC"]
[PlyCount "66"]
[EventDate "2024.01.09"]
[EventType "tourn"]
[EventCountry "IND"]
[SourceTitle "playchess.com"]
[Source "ChessBase"]
[SourceQuality "1"]
[TimeControl "5400+30"]

1. d4 {[%emt 0:00:02]} Nf6 {[%emt 0:00:07]} 2. c4 {[%emt 0:00:07]} g6 {[%emt 0:00:25]} 3. Nc3 {[%emt 0:00:05]} Bg7 {[%emt 0:00:03]} 4. e4 {[%emt 0:00:04]} d6 {[%emt 0:00:04]} 5. Nf3 {[%emt 0:00:07]} O-O {[%emt 0:00:06]} 6. Be2 {[%emt 0:00:03]} e5 {[%emt 0:00:18]} 7. O-O {[%emt 0:00:14]} Nc6 {[%emt 0:00:22]} 8. d5 {[%emt 0:00:05]} Ne7 {[%emt 0:00:01]} 9. Ne1 {[%emt 0:00:17]} Nd7 {[%emt 0:00:05]} 10. Nd3 {[%emt 0:00:08]} f5 {[%emt 0:00:05]} 11. Bd2 {[%emt 0:00:06]} f4 {[%emt 0:02:20]} 12. Bg4 {[%emt 0:00:14]} Nf6 {[%emt 0:01:49]} 13. Bxc8 {[%emt 0:00:08]} Rxc8 {[%emt 0:00:54]} 14. f3 {[%emt 0:00:06]} g5 {[%emt 0:01:02]} 15. Nf2 {[%emt 0:02:19]} h5 {[%emt 0:00:55]} 16. h3 {[%emt 0:00:17]} Rf7 {[%emt 0:06:43]} 17. b4 {[%emt 0:00:32]} Bf8 {[%emt 0:02:32]} 18. Rc1 {[%emt 0:01:07]} Ng6 {[%emt 0:01:31]} 19. a4 {[%emt 0:00:50]} Nh4 {[%emt 0:06:57]} 20. Nb5 {[%emt 0:00:38]} c6 {[%emt 0:10:29]} 21. Na3 {[%emt 0:01:00]} Rg7 {[%emt 0:01:18]} 22. Qe2 {[%emt 0:02:48]} Qd7 {[%emt 0:02:10]} 23. dxc6 {[%emt 0:02:58]} bxc6 {[%emt 0:02:14]} 24. Be1 {[%emt 0:01:38]} Be7 {[%emt 0:07:15]} 25. Rc3 {[%emt 0:16:14]} Kf7 {[%emt 0:05:51]} 26. c5 {[%emt 0:02:31]} g4 {[%emt 0:01:51]} 27. fxg4 {[%emt 0:04:46]} hxg4 {[%emt 0:00:34]} 28. cxd6 {[%emt 0:04:51]} gxh3 {[%emt 0:05:23]} 29. Qc4+ {[%emt 0:02:16]} Ke8 {[%emt 0:01:01]} 30. Rxh3 {[%emt 0:06:37]} Nxg2 {[%emt 0:08:30]} 31. Rh8+ {[%emt 0:03:44]} Bf8 {[%emt 0:00:27]} 32. Kh1 {[%emt 0:00:32]} Ne3 {[%emt 0:00:41]} 33. Qc5 {[%emt 0:02:24]} Rh7+ {[%emt 0:00:16]} 0-1